bitfinex/quotes_SOLUSD_20250204
["timestamp","ask_amount","ask_price","bid_price","bid_amount"]
[1738669525415,18.65710847,209.59,209.58,0.03]
[1738669525595,19.37197814,209.59,209.58,0.03]
[1738669526602,18.65710847,209.59,209.58,0.03]
[1738669527515,18.53161847,209.59,209.58,0.03]
[1738669528019,13.63492847,209.59,209.58,0.03]
[1738669528798,18.40612847,209.59,209.58,0.03]
[1738669529014,18.53161847,209.59,209.58,0.03]
[1738669529605,18.65710847,209.59,209.58,0.03]
[1738669529811,32.068957,209.59,209.58,0.03]
[1738669530713,32.068957,209.59,209.58,0.0001]
[1738669530714,33.068957,209.59,209.58,0.0001]
[1738669530918,33.068957,209.59,209.51,0.03]
[1738669530919,13.66282853,209.56,209.51,0.03]
[1738669531111,13.76041847,209.52,209.51,0.03]
[1738669531808,13.88590847,209.52,209.51,0.03]
[1738669532015,14.60077814,209.52,209.51,0.03]
[1738669532903,32.78542667,209.52,209.51,0.03]
[1738669533517,46.42035514,209.52,209.51,0.03]
[1738669533819,13.76041847,209.52,209.51,0.03]
[1738669533995,11.9291,209.57,209.51,0.15549]
[1738669533996,13.63492847,209.56,209.51,0.15549]
[1738669534502,13.63492847,209.54,209.51,0.03]
[1738669535026,13.63492847,209.53,209.51,0.03]
[1738669535417,13.63492847,209.52,209.51,0.03]
[1738669535742,13.88590847,209.52,209.51,0.03]
[1738669535905,27.297757,209.52,209.51,0.03]
[1738669537421,32.070557,209.52,209.51,0.03]
[1738669538617,20.25098,209.49,209.48,0.03]
[1738669538816,34.60077814,209.49,209.48,0.03]
[1738669539206,39.37417814,209.49,209.48,0.03]
[1738669539537,52.78602667,209.49,209.48,0.03]
[1738669540828,0.25098,209.48,209.43,0.03]
[1738669541031,13.88590847,209.44,209.43,0.03]
[1738669541226,18.66050847,209.44,209.43,0.03]
[1738669541825,32.072357,209.44,209.43,0.03]
[1738669542401,18.66050847,209.44,209.43,0.03]
[1738669542832,19.37537814,209.44,209.43,0.03]
[1738669543028,32.78722667,209.44,209.43,0.03]
[1738669543607,19.24988814,209.44,209.43,0.03]
[1738669543843,13.63492847,209.44,209.43,0.03]
[1738669544329,13.63492847,209.45,209.43,0.03]
[1738669544511,13.63492847,209.44,209.43,0.03]
[1738669545413,13.63492847,209.45,209.43,0.03]
[1738669545607,13.63492847,209.47,209.43,0.15549]
[1738669546121,13.63492847,209.47,209.44,0.25098]
[1738669546620,13.63492847,209.47,209.43,0.03]
[1738669547546,13.63492847,209.47,209.44,0.12549]
[1738669548211,13.63492847,209.53,209.47,0.12549]
[1738669548415,13.63492847,209.53,209.47,0.25098]
[1738669548718,13.63492847,209.53,209.47,0.12549]
[1738669548935,13.63492847,209.55,209.48,0.12549]
[1738669549449,13.63492847,209.53,209.47,5.02478]
[1738669550143,13.63492847,209.54,209.47,18.65970847]
[1738669550655,21.84840438,209.53,209.47,5.02478]
[1738669551445,21.84840438,209.55,209.47,26.87318438]
[1738669552043,21.91140438,209.56,209.49,0.25098]
[1738669552366,0.063,209.56,209.54,0.12549]
[1738669552727,0.063,209.56,209.55,0.12549]
[1738669553548,0.063,209.56,209.55,5.02308]
[1738669554052,21.91140438,209.56,209.5,6.2131]
[1738669554361,21.84840438,209.52,209.49,81.12549]
[1738669554944,21.84840438,209.52,209.5,0.25098]
[1738669556463,21.84840438,209.51,209.45,6.5481]
[1738669556672,21.84840438,209.47,209.43,0.03]
[1738669556972,21.84840438,209.44,209.43,0.03]
[1738669557130,1.17688126,209.49,209.43,0.03]
[1738669557131,21.84840438,209.45,209.43,0.03]
[1738669557336,21.84840438,209.45,209.43,0.28098]
[1738669557568,21.84840438,209.44,209.43,0.28098]
[1738669558238,21.84840438,209.44,209.43,0.03]
[1738669558641,22.09938438,209.44,209.43,0.03]
[1738669559229,26.87398438,209.44,209.43,0.03]
[1738669559659,27.58885405,209.44,209.43,0.03]
[1738669561662,21.97389438,209.44,209.43,0.03]
[1738669561855,21.84840438,209.46,209.43,0.03]
[1738669562054,21.84840438,209.45,209.43,0.03]
[1738669562457,26.62210438,209.48,209.43,0.15549]
[1738669562644,21.84840438,209.49,209.44,0.12549]
[1738669562846,21.84840438,209.46,209.43,0.03]
[1738669563348,21.84840438,209.44,209.43,0.03]
[1738669563769,26.62300438,209.45,209.43,0.03]
[1738669563970,21.84840438,209.44,209.43,0.03]
[1738669564146,21.97389438,209.44,209.43,0.03]
[1738669564351,35.51123291,209.44,209.43,0.03]
[1738669564655,0.12549,209.42,209.4,0.03]
[1738669564853,22.81425405,209.41,209.4,0.03]
[1738669565245,21.84840438,209.46,209.4,0.15549]
[1738669565445,2.20838811,209.53,209.42,0.12549]
[1738669565446,26.62210438,209.48,209.42,0.12549]
[1738669565658,21.84840438,209.46,209.42,0.12549]
[1738669566147,21.97389438,209.47,209.41,0.12549]
[1738669566356,21.84840438,209.45,209.41,0.12549]
[1738669566858,21.84840438,209.42,209.4,0.03]
[1738669567060,21.84840438,209.41,209.4,0.03]
[1738669567367,21.97389438,209.41,209.4,0.03]
[1738669567545,21.84840438,209.41,209.4,0.03]
[1738669567741,26.62370438,209.41,209.4,0.03]
[1738669567977,26.87468438,209.41,209.4,0.03]
[1738669568561,27.58955405,209.41,209.4,0.03]
[1738669569973,0.12549,209.4,209.38,0.01760056]
[1738669570179,22.81425405,209.39,209.38,0.01760056]
[1738669570749,22.09938438,209.39,209.38,0.01760056]
[1738669571366,21.97389438,209.39,209.38,0.01760056]
[1738669571579,21.84840438,209.4,209.38,0.01760056]
[1738669571794,21.84840438,209.41,209.38,0.01760056]
[1738669572093,26.62370438,209.41,209.38,0.01760056]
[1738669572448,21.84840438,209.41,209.38,0.01760056]
[1738669572679,4.7744,209.45,209.39,0.25098]
[1738669573178,21.84840438,209.44,209.39,0.25098]
[1738669573376,26.62280438,209.45,209.39,0.25098]
[1738669573581,26.62230438,209.47,209.39,22.09938438]
[1738669573880,21.84840438,209.45,209.39,0.25098]
[1738669574491,26.62280438,209.45,209.39,0.25098]
[1738669574991,21.84840438,209.42,209.39,0.25098]
[1738669576193,21.84840438,209.4,209.38,0.01760056]
[1738669576376,0.71486967,209.44,209.38,0.01760056]
[1738669576377,21.84840438,209.39,209.38,0.01760056]
[1738669576776,26.74959438,209.39,209.38,0.01760056]
[1738669576974,26.87508438,209.39,209.38,0.01760056]
[1738669578583,40.28693291,209.39,209.38,0.01760056]
[1738669578801,26.87508438,209.39,209.38,0.01760056]
[1738669579188,41.00180258,209.39,209.38,0.01760056]
[1738669579698,13.66282853,209.38,209.37,5.6e-07]
[1738669579877,35.51123291,209.38,209.37,5.6e-07]
[1738669580678,40.28723291,209.38,209.37,5.6e-07]
[1738669582820,26.87538438,209.38,209.37,5.6e-07]
[1738669583298,40.28723291,209.38,209.37,5.6e-07]
[1738669584706,20.25098,209.34,209.3,0.03]
[1738669584913,21.97389438,209.31,209.3,0.03]
[1738669586820,21.84840438,209.32,209.3,0.03]
[1738669587189,21.84840438,209.31,209.3,0.03]
[1738669588412,0.12549,209.35,209.3,0.03]
[1738669588413,21.84840438,209.32,209.3,0.03]
[1738669588616,21.84840438,209.31,209.3,0.03]
[1738669588829,21.97389438,209.31,209.3,0.03]
[1738669589117,21.84840438,209.31,209.3,0.03]
[1738669589291,21.84840438,209.34,209.3,0.03]
[1738669591229,6.1461,209.44,209.31,0.25098]
[1738669591406,21.84840438,209.4,209.34,0.12549]
[1738669591594,21.84840438,209.37,209.33,0.12549]
[1738669591795,21.84840438,209.39,209.33,0.25098]
[1738669592230,21.84840438,209.4,209.33,21.97389438]
[1738669592522,21.84840438,209.41,209.35,0.12549]
[1738669593022,21.84840438,209.39,209.35,0.12549]
[1738669593396,4.775,209.42,209.35,0.12549]
[1738669593397,21.84840438,209.4,209.35,0.12549]
[1738669593714,4.775,209.42,209.35,0.12549]
[1738669593715,21.84840438,209.41,209.35,0.12549]
[1738669594234,21.84840438,209.4,209.35,0.12549]
[1738669595104,21.84840438,209.36,209.35,0.12549]
[1738669597111,21.84840438,209.36,209.3,0.03]
[1738669597311,21.84840438,209.32,209.3,0.03]
[1738669597832,21.84840438,209.33,209.3,0.03]
[1738669598005,21.84840438,209.34,209.3,0.03]
[1738669598737,26.62390438,209.4,209.33,0.12549]
[1738669599106,21.84840438,209.37,209.33,0.12549]
[1738669599308,21.84840438,209.36,209.33,0.12549]
[1738669599629,21.84840438,209.34,209.3,0.03]
[1738669600631,21.84840438,209.35,209.3,0.03]
[1738669601010,4.7762,209.37,209.3,0.03]
[1738669601011,21.84840438,209.33,209.3,0.03]
[1738669601234,21.84840438,209.32,209.3,0.03]
[1738669601533,21.84840438,209.33,209.3,0.03]
[1738669601731,21.84840438,209.32,209.3,0.03]
[1738669601937,21.84840438,209.31,209.3,0.03]
[1738669602514,26.87698438,209.31,209.3,0.03]
[1738669603330,21.84840438,209.31,209.3,0.03]
[1738669604909,21.84840438,209.32,209.3,0.03]
[1738669605324,21.84840438,209.31,209.3,0.03]
[1738669605724,21.84840438,209.32,209.3,0.03]
[1738669606423,21.84840438,209.35,209.3,0.03]
[1738669606728,13.67706696,209.36,209.3,0.03]
[1738669607831,13.67706696,209.36,209.31,0.12549]
[1738669608333,13.67706696,209.35,209.31,0.12549]
[1738669608528,13.67706696,209.35,209.3,0.15549]
[1738669609119,13.67706696,209.36,209.3,0.15549]
[1738669609723,13.67706696,209.36,209.31,0.12549]
[1738669609912,13.67706696,209.37,209.31,0.12549]
[1738669610232,13.67706696,209.37,209.32,0.12549]
[1738669611033,13.67706696,209.35,209.32,0.12549]
[1738669611408,13.67706696,209.35,209.3,4.8077]
[1738669611608,13.67706696,209.34,209.3,4.8077]
[1738669611906,13.67706696,209.31,209.3,0.03]
[1738669612519,27.47962392,209.31,209.3,0.03]
[1738669613216,18.58015696,209.31,209.3,0.03]
[1738669613730,32.38271392,209.31,209.3,0.03]
[1738669614635,48.84269686,209.31,209.3,0.03]
[1738669615027,26.93563843,209.31,209.3,0.03]
[1738669616334,40.34748696,209.31,209.3,0.03]
[1738669617138,26.93563843,209.31,209.3,0.03]
[1738669619837,21.90705843,209.34,209.3,0.03]
[1738669620337,21.90705843,209.32,209.3,0.03]
[1738669623647,21.90705843,209.31,209.3,0.03]
[1738669624450,21.90705843,209.34,209.3,0.03]
[1738669624745,21.90705843,209.33,209.3,0.03]
[1738669625152,21.90705843,209.35,209.3,0.03]
[1738669625534,21.90705843,209.33,209.3,0.28098]
[1738669625851,21.90705843,209.31,209.3,0.28098]
[1738669626031,21.90705843,209.31,209.3,0.03]
[1738669626229,22.15803843,209.31,209.3,0.03]
[1738669626747,22.03254843,209.31,209.3,0.03]
[1738669628132,21.90705843,209.31,209.3,0.03]
[1738669628647,21.90705843,209.32,209.3,0.03]
[1738669628844,21.90705843,209.33,209.3,0.03]
[1738669629223,4.7764,209.36,209.3,0.03]
[1738669629224,21.90705843,209.32,209.3,0.03]
[1738669629638,21.90705843,209.32,209.31,0.25098]
[1738669629837,21.90705843,209.32,209.31,0.12549]
[1738669630259,21.90705843,209.33,209.3,0.03]
[1738669630435,21.90705843,209.35,209.3,0.15549]
[1738669630828,21.90705843,209.36,209.3,0.15549]
[1738669631751,21.90705843,209.36,209.32,0.25098]
[1738669632255,21.90705843,209.33,209.32,0.12549]
[1738669632558,21.90705843,209.34,209.32,0.12549]
[1738669633538,21.90705843,209.35,209.32,0.12549]
[1738669634055,21.90705843,209.34,209.32,0.12549]
[1738669634630,13.67988245,209.34,209.32,0.12549]
[1738669635353,13.67988245,209.33,209.3,0.03]
[1738669635569,13.67988245,209.31,209.3,0.03]
[1738669635764,13.67988245,209.32,209.3,0.03]
[1738669635969,13.67988245,209.35,209.31,0.25098]
[1738669636960,0.063,209.37,209.31,14.64742936]
[1738669637166,0.063,209.37,209.33,0.25098]
[1738669637541,13.74288245,209.37,209.33,5.02788]
[1738669638055,0.063,209.37,209.33,5.02788]
[1738669638238,13.74288245,209.37,209.33,0.25098]
[1738669638564,13.67988245,209.35,209.31,1.5335]
[1738669638769,13.67988245,209.34,209.31,1.5335]
[1738669638971,13.67988245,209.32,209.3,0.03]
[1738669639183,13.67988245,209.31,209.3,0.03]
[1738669639544,13.67988245,209.32,209.3,0.03]
[1738669640744,0.90335967,209.37,209.3,0.03]
[1738669640745,13.67988245,209.33,209.3,0.03]
[1738669641046,13.67988245,209.34,209.3,0.03]
[1738669641243,13.67988245,209.33,209.3,0.03]
[1738669642358,5.49146967,209.36,209.3,0.03]
[1738669642359,13.67988245,209.31,209.3,0.03]
[1738669643371,13.80537245,209.31,209.3,0.03]
[1738669644071,18.58297245,209.31,209.3,0.03]
[1738669644251,18.70846245,209.31,209.3,0.03]
[1738669645944,13.67988245,209.32,209.3,0.03]
[1738669646152,13.67988245,209.36,209.31,0.25098]
[1738669646661,0.063,209.37,209.31,0.25098]
[1738669646856,0.063,209.37,209.33,0.25098]
[1738669647443,13.74288245,209.37,209.3,15.32228245]
[1738669647672,13.74288245,209.37,209.3,1.6424]
[1738669647875,0.063,209.37,209.31,5.02858]
[1738669648373,0.063,209.37,209.33,13.67988245]
[1738669648681,0.063,209.37,209.34,33.93086245]
[1738669649280,0.063,209.37,209.36,0.25098]
[1738669649462,0.063,209.37,209.36,33.93086245]
[1738669649961,0.063,209.37,209.36,38.70726245]
[1738669650161,0.063,209.37,209.36,25.02738]
[1738669650753,0.063,209.37,209.36,0.25098]
[1738669651178,0.063,209.37,209.36,5.02738]
[1738669652175,0.063,209.37,209.36,25.02738]
[1738669653048,0.063,209.37,209.36,0.25098]
[1738669653282,13.74288245,209.37,209.36,0.25098]
[1738669653859,13.74288245,209.37,209.3,0.03]
[1738669654054,13.67988245,209.32,209.3,0.03]
[1738669654257,13.67988245,209.31,209.3,0.03]
[1738669654569,13.67988245,209.31,209.3,7.28989457]
[1738669654776,13.67988245,209.31,209.3,7.54087457]
[1738669655481,13.67988245,209.31,209.3,7.41538457]
[1738669655665,13.80537245,209.31,209.3,7.28989457]
[1738669655986,18.70846245,209.31,209.3,7.28989457]
[1738669656365,45.80019343,209.31,209.3,7.28989457]
[1738669656867,18.58297245,209.31,209.3,7.28989457]
[1738669657072,32.2628549,209.31,209.3,7.28989457]
[1738669657256,45.80019343,209.31,209.3,0.03]
[1738669657456,46.5150631,209.31,209.3,0.03]
[1738669658884,46.5150631,209.31,209.3,0.0001]
[1738669659186,20.25098,209.27,209.21,0.25098]
[1738669659356,13.67988245,209.23,209.21,0.25098]
[1738669659783,13.67988245,209.23,209.17,81.15549]
[1738669659985,13.67988245,209.23,209.17,0.03]
[1738669661182,18.71026245,209.23,209.17,0.03]
[1738669661569,32.12211098,209.23,209.17,0.03]
[1738669666363,18.71026245,209.23,209.17,0.03]
[1738669666758,13.80537245,209.23,209.17,0.03]
[1738669667376,18.58477245,209.23,209.17,0.03]
[1738669668664,18.71026245,209.23,209.17,0.03]
[1738669669591,13.67988245,209.23,209.17,0.03]
[1738669669989,32.12211098,209.23,209.17,0.03]
[1738669670292,18.71026245,209.23,209.17,0.03]
[1738669670480,13.67988245,209.23,209.17,0.03]
[1738669672297,13.67988245,209.24,209.18,0.25098]
[1738669672500,13.67988245,209.26,209.2,0.25098]
[1738669672682,13.67988245,209.24,209.2,0.25098]
[1738669673077,13.67988245,209.23,209.2,0.25098]
[1738669673282,13.67988245,209.24,209.2,5.03098]
[1738669673686,13.67988245,209.23,209.2,5.03098]
[1738669673894,13.67988245,209.23,209.2,0.25098]
[1738669674195,13.67988245,209.23,209.17,0.03]
[1738669674494,13.93086245,209.23,209.17,0.03]
[1738669674697,13.93086245,209.23,209.17,0.28098]
[1738669675093,13.67988245,209.23,209.17,0.28098]
[1738669675296,13.67988245,209.23,209.17,5.06168]
[1738669675500,13.67988245,209.24,209.19,0.25098]
[1738669675708,13.67988245,209.26,209.19,0.25098]
[1738669675875,13.67988245,209.26,209.19,1.84398]
[1738669676076,13.67988245,209.25,209.19,1.84398]
[1738669676709,13.67988245,209.25,209.21,0.25098]
[1738669677291,13.67988245,209.28,209.21,0.25098]
[1738669677606,13.67988245,209.27,209.21,0.25098]
[1738669679490,13.67988245,209.25,209.19,1.593]
[1738669679694,13.67988245,209.26,209.22,0.28098]
[1738669680096,13.67988245,209.28,209.22,0.28098]
[1738669680283,13.67988245,209.31,209.24,0.25098]
[1738669680609,13.67988245,209.31,209.25,0.25098]
[1738669680982,13.67988245,209.3,209.25,0.25098]
[1738669681183,20.90335967,209.37,209.25,28.05936258]
[1738669681184,13.67988245,209.32,209.25,28.05936258]
[1738669681401,13.67988245,209.34,209.29,0.25098]
[1738669681815,0.063,209.37,209.32,0.25098]
[1738669682031,0.063,209.37,209.36,0.12549]
[1738669682392,0.063,209.37,209.36,33.93086245]
[1738669682812,0.063,209.37,209.36,48.05899381]
[1738669682989,0.063,209.37,209.36,47.34271098]
[1738669683495,0.063,209.37,209.36,52.11911098]
[1738669683691,0.063,209.37,209.36,5.02738]
[1738669683895,0.063,209.37,209.36,0.25098]
[1738669685540,0.063,209.37,209.36,27.34271098]
[1738669685747,0.063,209.37,209.36,108.46820098]
[1738669686108,0.063,209.37,209.36,108.59369098]
[1738669687335,0.063,209.37,209.36,113.37009098]
[1738669687910,0.063,209.37,209.36,86.15287]
[1738669688108,0.063,209.37,209.36,81.37647]
[1738669689928,13.74288245,209.37,209.36,0.25098]
[1738669690235,13.74288245,209.37,209.29,85.90349]
[1738669690420,13.74288245,209.37,209.29,81.12549]
[1738669690421,13.67988245,209.31,209.29,81.12549]
[1738669690616,13.67988245,209.31,209.24,15.25508245]
[1738669690617,13.67988245,209.3,209.24,6.3543]
[1738669690822,13.67988245,209.28,209.24,4.7791]
[1738669691017,13.67988245,209.27,209.25,0.25098]
[1738669691213,13.67988245,209.27,209.23,81.12549]
[1738669691413,13.67988245,209.26,209.22,4.8094]
[1738669691715,13.67988245,209.25,209.22,0.03]
[1738669692130,13.67988245,209.27,209.22,0.03]
[1738669692431,13.67988245,209.28,209.23,0.25098]
[1738669692644,13.67988245,209.29,209.23,0.25098]
[1738669692936,13.67988245,209.3,209.23,0.25098]
[1738669693343,13.67988245,209.29,209.23,0.25098]
[1738669693515,13.67988245,209.31,209.25,0.25098]
[1738669693715,13.67988245,209.35,209.29,0.25098]
[1738669693933,13.67988245,209.33,209.29,0.25098]
[1738669696446,13.67988245,209.32,209.29,0.25098]
[1738669696815,13.67988245,209.32,209.26,18.44132853]
[1738669697136,13.67988245,209.32,209.26,5.02948]
[1738669697509,13.67988245,209.33,209.26,18.70936245]
[1738669698117,13.67988245,209.32,209.26,5.02948]
[1738669698333,13.67988245,209.3,209.26,0.25098]
[1738669698710,13.67988245,209.27,209.26,0.25098]
[1738669698929,13.67988245,209.27,209.23,81.12549]
[1738669699139,13.67988245,209.25,209.23,81.12549]
[1738669699321,13.67988245,209.25,209.22,0.03]
[1738669699656,13.67988245,209.23,209.22,0.03]
[1738669700016,13.80537245,209.23,209.22,0.03]
[1738669701150,14.52024212,209.23,209.22,0.03]
[1738669701527,14.64573212,209.23,209.22,0.03]
[1738669701762,19.42513212,209.23,209.22,0.03]
[1738669702051,18.58477245,209.23,209.22,0.03]
[1738669702429,18.71026245,209.23,209.22,0.03]
[1738669702923,18.58477245,209.23,209.22,0.03]
[1738669704546,18.45928245,209.23,209.22,0.03]
[1738669704760,13.67988245,209.23,209.22,0.03]
[1738669705045,13.67988245,209.24,209.22,0.03]
[1738669705436,13.67988245,209.23,209.22,0.03]
[1738669705956,13.80537245,209.23,209.22,0.03]
[1738669706253,13.93086245,209.23,209.22,0.03]
[1738669706948,13.80537245,209.23,209.22,0.03]
[1738669707140,13.67988245,209.25,209.22,0.03]
[1738669707548,13.67988245,209.24,209.22,0.03]
[1738669707745,13.67988245,209.23,209.22,0.03]
[1738669708750,13.67988245,209.24,209.22,0.03]
[1738669709049,13.67988245,209.23,209.22,0.03]
[1738669709420,13.67988245,209.25,209.22,0.03]
[1738669709654,13.67988245,209.28,209.22,0.03]
[1738669709829,13.67988245,209.29,209.22,13.70988245]
[1738669710253,13.67988245,209.28,209.22,0.03]
[1738669711061,13.67988245,209.26,209.22,0.03]
[1738669711632,13.67988245,209.25,209.22,0.03]
[1738669712743,13.67988245,209.23,209.22,0.03]
[1738669713242,18.58477245,209.23,209.22,0.03]
[1738669713756,18.71026245,209.23,209.22,0.03]
[1738669716462,32.12211098,209.23,209.22,0.03]
[1738669716964,18.71026245,209.23,209.22,0.03]
[1738669717744,18.58477245,209.23,209.22,0.03]
[1738669717945,13.67988245,209.25,209.22,0.03]
[1738669718737,13.67988245,209.26,209.22,0.28098]
[1738669718931,13.67988245,209.25,209.22,0.28098]
[1738669719255,13.67988245,209.23,209.22,0.28098]
[1738669719640,18.45928245,209.23,209.22,0.03]
[1738669719840,18.58477245,209.23,209.22,0.03]
[1738669720037,18.71026245,209.23,209.22,0.03]
[1738669720340,32.12211098,209.23,209.22,0.03]
[1738669721047,32.83698065,209.23,209.22,0.03]
[1738669722374,0.25098,209.19,209.17,0.03]
[1738669722665,22.77142465,209.18,209.17,0.03]
[1738669722970,22.89691465,209.18,209.17,0.03]
[1738669723762,36.30876318,209.18,209.17,0.03]
[1738669723940,22.18204498,209.18,209.17,0.03]
[1738669724140,22.05655498,209.18,209.17,0.03]
[1738669725275,26.96254498,209.18,209.17,0.03]
[1738669725446,27.67741465,209.18,209.17,0.03]
[1738669727274,22.05655498,209.18,209.17,0.03]
[1738669729579,26.83705498,209.18,209.17,0.03]
[1738669729956,27.67741465,209.18,209.17,0.03]
[1738669730150,26.83705498,209.18,209.17,0.03]
[1738669730871,26.96254498,209.18,209.17,0.03]
[1738669731876,22.05655498,209.18,209.17,0.03]
[1738669732084,21.93106498,209.18,209.17,0.03]
[1738669733687,21.93106498,209.21,209.17,0.03]
[1738669733981,21.93106498,209.23,209.17,0.28098]
[1738669734485,21.93106498,209.22,209.17,0.28098]
[1738669734853,21.93106498,209.24,209.17,23.76814498]
[1738669735061,21.93106498,209.24,209.19,0.25098]
[1738669735974,21.93106498,209.24,209.19,5.03108]
[1738669737173,21.93106498,209.25,209.19,5.03108]
[1738669737373,21.93106498,209.29,209.23,0.25098]
[1738669737594,21.99406498,209.3,209.23,22.18204498]
[1738669738119,21.93106498,209.27,209.24,0.25098]
[1738669738270,21.93106498,209.28,209.24,0.25098]
[1738669738473,21.93106498,209.29,209.24,0.25098]
[1738669739466,0.063,209.3,209.26,0.25098]
[1738669739674,0.063,209.3,209.28,0.25098]
[1738669740698,21.93106498,209.29,209.22,4.7794]
[1738669740891,21.93106498,209.26,209.22,4.7794]
[1738669741196,21.93106498,209.25,209.23,0.25098]
[1738669741388,21.93106498,209.24,209.17,4.8107]
[1738669741592,0.12549,209.28,209.17,4.8107]
[1738669741593,21.93106498,209.21,209.17,0.03]
[1738669741788,21.93106498,209.21,209.17,5.06158]
[1738669742279,21.93106498,209.21,209.17,0.28098]
[1738669742601,13.69621837,209.21,209.17,0.28098]
[1738669743395,13.69621837,209.22,209.17,5.06168]
[1738669743583,13.69621837,209.25,209.19,0.25098]
[1738669744203,13.69621837,209.24,209.18,0.25098]
[1738669744400,13.69621837,209.23,209.18,0.25098]
[1738669744599,21.9083089,209.24,209.18,0.25098]
[1738669744804,21.9083089,209.24,209.18,5.03128]
[1738669745318,21.9083089,209.26,209.2,0.25098]
[1738669745518,21.9713089,209.3,209.24,0.25098]
[1738669745693,0.063,209.3,209.26,0.25098]
[1738669746015,21.9713089,209.3,209.24,0.7166506]
[1738669746199,21.9713089,209.3,209.25,0.25098]
[1738669746710,21.9083089,209.27,209.25,0.25098]
[1738669746893,21.9083089,209.26,209.25,0.25098]
[1738669747097,21.9083089,209.27,209.25,0.25098]
[1738669747711,21.9083089,209.26,209.24,0.25098]
[1738669747928,21.9083089,209.25,209.24,0.25098]
[1738669748424,21.9083089,209.25,209.19,81.12549]
[1738669748705,21.9083089,209.2,209.18,4.7804]
[1738669749093,21.9083089,209.21,209.19,0.25098]
[1738669749298,21.9083089,209.2,209.19,0.25098]
[1738669750103,21.9083089,209.23,209.18,0.25098]
[1738669750507,21.908649,209.23,209.18,0.25098]
[1738669750693,21.908649,209.23,209.18,5.03128]
[1738669750905,21.908649,209.21,209.18,5.03128]
[1738669752204,21.908649,209.23,209.18,18.44312853]
[1738669752420,21.908649,209.27,209.2,13.66282853]
[1738669752715,21.908649,209.28,209.22,0.25098]
[1738669753088,21.908649,209.26,209.22,0.25098]
[1738669753292,21.908649,209.23,209.18,85.90579]
[1738669753719,21.908649,209.23,209.19,0.25098]
[1738669754023,21.908649,209.23,209.21,0.25098]
[1738669754397,21.908649,209.22,209.21,0.25098]
[1738669754607,21.908649,209.22,209.2,0.25098]
[1738669754805,21.908649,209.24,209.2,0.25098]
[1738669755019,21.908649,209.23,209.2,0.25098]
[1738669755214,21.908649,209.26,209.2,0.25098]
[1738669755412,21.908649,209.25,209.2,0.25098]
[1738669755710,21.908649,209.29,209.22,13.66282853]
[1738669755913,0.063,209.3,209.24,13.66282853]
[1738669756100,0.063,209.3,209.28,0.25098]
[1738669756302,21.908649,209.29,209.28,0.25098]
[1738669756709,21.908649,209.29,209.22,20.25098]
[1738669756904,21.908649,209.24,209.22,5.03058]
[1738669757109,21.908649,209.23,209.22,0.25098]
[1738669757321,21.908649,209.23,209.19,0.25098]
[1738669757528,21.908649,209.22,209.19,0.25098]
[1738669757915,21.908649,209.23,209.19,0.25098]
[1738669758099,21.908649,209.21,209.19,0.25098]
[1738669758300,21.908649,209.2,209.19,0.25098]
[1738669758510,21.908649,209.21,209.19,0.25098]
[1738669758921,21.908649,209.22,209.19,0.25098]
[1738669759734,21.908649,209.24,209.19,5.03118]
[1738669760238,21.908649,209.26,209.19,19.15984401]
[1738669760725,21.908649,209.21,209.19,0.25098]
[1738669760931,21.908649,209.23,209.19,5.03128]
[1738669761842,21.908649,209.21,209.19,0.25098]
[1738669762007,21.908649,209.22,209.19,0.25098]
[1738669762202,21.908649,209.2,209.19,0.25098]
[1738669765032,21.908649,209.22,209.19,0.25098]
[1738669765336,21.908649,209.24,209.19,5.03128]
[1738669765531,21.908649,209.25,209.19,5.74815954]
[1738669765924,0.12549,209.28,209.19,0.25098]
[1738669766127,21.908649,209.22,209.19,0.25098]
[1738669766334,21.908649,209.22,209.19,0.28098]